fUSD/lending_fUSD_20240301
["ID","MTS","AMOUNT","RATE_DAILY","PERIOD"]
[315942193,1709295056623,-500.0,0.00022539,2]
[315942194,1709295056632,-374.05396027,0.00022539,2]
[315942195,1709295056642,-500.0,0.00022552,2]
[315942196,1709295056651,-540.24,0.00022553,2]
[315942197,1709295056661,-611.02,0.00022553,2]
[315942198,1709295056670,-811.4,0.00022553,2]
[315942199,1709295056679,-500.0,0.00022553,2]
[315942200,1709295056688,-500.0,0.00022553,2]
[315942201,1709295056697,-799.98,0.00022553,2]
[315942202,1709295056707,-1817.81,0.00022553,2]
[315942203,1709295056717,-882.25,0.00022553,2]
[315942204,1709295056726,-1109.98,0.00022553,2]
[315942205,1709295056735,-500.0,0.00022553,2]
[315942206,1709295056745,-500.0,0.00022553,2]
[315942207,1709295056754,-1131.64,0.00022553,2]
[315942208,1709295056764,-2316.01,0.00022553,2]
[315942209,1709295056775,-558.11,0.00022553,2]
[315942210,1709295056784,-500.0,0.00022553,2]
[315942211,1709295056794,-736.46,0.00022553,2]
[315942212,1709295056804,-500.0,0.00022553,2]
[315942213,1709295056813,-500.0,0.00022553,2]
[315942214,1709295056822,-500.0,0.00022553,2]
[315942215,1709295056832,-500.0,0.00022553,2]
[315942216,1709295056842,-701.88,0.00022553,2]
[315942217,1709295056851,-500.0,0.00022553,2]
[315942218,1709295056861,-508.92,0.00022553,2]
[315942219,1709295056870,-500.0,0.00022553,2]
[315942220,1709295056886,-500.0,0.00022553,2]
[315942221,1709295056902,-500.0,0.00022553,2]
[315942222,1709295056918,-500.0,0.00022553,2]
[315942223,1709295056929,-586.31,0.00022553,2]
[315942224,1709295056943,-2298.0,0.0002256,2]
[315942225,1709295056957,-4400.486,0.0002256,2]
[315942226,1709295056973,-11594.0,0.0002256,2]
[315942227,1709295056986,-252.5376741,0.00022562,2]
[315942228,1709295056999,-19999.99,0.00022562,2]
[315942229,1709295057013,-780.76,0.00022567,2]
[315942230,1709295057027,-523.42738357,0.00022567,2]
[315942231,1709295057041,-5441.08,0.00022567,2]
[315942232,1709295057055,-500.0,0.00022567,2]
[315942233,1709295057068,-522.03,0.00022567,2]
[315942234,1709295057079,-500.0,0.00022567,2]
[315942235,1709295057095,-1106.26,0.00022567,2]
[315942236,1709295057110,-500.0,0.00022567,2]
[315942237,1709295057123,-500.0,0.00022567,2]
[315942238,1709295057135,-4586.86,0.00022567,2]
[315942239,1709295057150,-3175.59,0.00022567,2]
[315942240,1709295057164,-500.0,0.00022567,2]
[315942241,1709295057179,-500.0,0.00022567,2]
[315942242,1709295057195,-1426.45,0.00022567,2]
[315942243,1709295057211,-618.94,0.00022567,2]
[315942244,1709295057222,-1490.62341771,0.00022572,2]
[315942245,1709295057233,-2898.63,0.00022597,2]
[315942246,1709295057246,-714.03,0.00022597,2]
[315942247,1709295057261,-527.98,0.00022597,2]
[315942248,1709295057275,-666.17,0.00022597,2]
[315942249,1709295057290,-500.0,0.00022597,2]
[315942250,1709295057301,-8481.78,0.00022597,2]
[315942251,1709295057313,-730.63,0.00022597,2]
[315942252,1709295057324,-600.68,0.00022597,2]
[315942253,1709295057336,-1478.52,0.00022597,2]
[315942254,1709295057348,-500.0,0.00022597,2]
[315942255,1709295057360,-1144.35,0.00022597,2]
[315942256,1709295057372,-500.0,0.00022597,2]
[315942257,1709295057384,-500.0,0.00022597,2]
[315942258,1709295057396,-778.46,0.00022597,2]
[315942259,1709295057408,-1856.23,0.00022597,2]
[315942260,1709295057420,-500.0,0.00022597,2]
[315942261,1709295057432,-625.47,0.00022597,2]
[315942262,1709295057444,-500.0,0.00022597,2]
[315942263,1709295057456,-867.25,0.00022597,2]
[315942264,1709295057468,-2112.45,0.00022597,2]
[315942265,1709295057480,-1210.11,0.00022597,2]
[315942266,1709295057497,-846.13,0.00022597,2]
[315942267,1709295057509,-500.0,0.00022597,2]
[315942268,1709295057522,-500.0,0.00022597,2]
[315942269,1709295057534,-582.82,0.00022597,2]
[315942270,1709295057546,-505.55,0.00022597,2]
[315942271,1709295057558,-903.97,0.00022597,2]
[315942272,1709295057570,-601.97,0.00022597,2]
[315942273,1709295057581,-500.0,0.00022597,2]
[315942274,1709295057593,-500.0,0.00022597,2]
[315942275,1709295057605,-746.14,0.00022597,2]
[315942276,1709295057617,-871.53,0.00022597,2]
[315942277,1709295057629,-1406.63,0.00022597,2]
[315942278,1709295057642,-2347.98,0.00022597,2]
[315942279,1709295057653,-1718.68,0.00022597,2]
[315942280,1709295057665,-500.0,0.00022597,2]
[315942281,1709295057677,-4372.22,0.00022597,2]
[315942282,1709295057688,-1181.68,0.00022597,2]
[315942283,1709295057700,-2485.24,0.00022597,2]
[315942284,1709295057712,-534.88,0.00022597,2]
[315942285,1709295057724,-1377.46,0.00022597,2]
[315942286,1709295057736,-737.44,0.00022597,2]
[315942287,1709295057747,-1189.11,0.00022597,2]
[315942288,1709295057760,-500.0,0.00022598,2]
[315942289,1709295057773,-500.0,0.00022598,2]
[315942290,1709295057784,-500.0,0.00022598,2]
[315942291,1709295057796,-500.0,0.00022598,2]
[315942292,1709295057808,-599.23432945,0.00022598,2]
[315942293,1709295057820,-500.0,0.00022598,2]
[315942294,1709295057833,-500.0,0.00022598,2]
[315942295,1709295057844,-500.0,0.00022598,2]
[315942296,1709295057857,-500.0,0.00022598,2]
[315942297,1709295057870,-500.0,0.00022598,2]
[315942298,1709295057881,-500.0,0.00022598,2]
[315942299,1709295057894,-500.0,0.00022598,2]
[315942300,1709295057906,-500.0,0.00022598,2]
[315942301,1709295057918,-561.79,0.00022598,2]
[315942302,1709295057929,-500.0,0.00022598,2]
[315942303,1709295057941,-500.0,0.00022598,2]
[315942304,1709295057954,-530.39863048,0.00022598,2]
[315942305,1709295057967,-500.0,0.00022598,2]
[315942306,1709295057979,-571.42080597,0.00022598,2]
[315942307,1709295057991,-500.0,0.00022598,2]
[315942308,1709295058004,-500.0,0.00022598,2]
[315942309,1709295058017,-554.11,0.00022598,2]
[315942310,1709295058031,-500.0,0.00022598,2]
[315942311,1709295058042,-500.0,0.00022598,2]
[315942312,1709295058054,-500.0,0.00022598,2]
[315942313,1709295058066,-500.0,0.00022598,2]
[315942314,1709295058078,-500.0,0.00022598,2]
[315942315,1709295058090,-483.88011692,0.00022598,2]
[315942316,1709295058101,-500.0,0.00022598,2]
[315942317,1709295058114,-500.0,0.00022598,2]
[315942318,1709295058125,-500.0,0.00022598,2]
[315942319,1709295058138,-500.0,0.00022598,2]
[315942320,1709295058149,-500.0,0.00022598,2]
[315942321,1709295058161,-500.0,0.00022598,2]
[315942322,1709295058173,-500.0,0.00022598,2]
[315942323,1709295058184,-500.0,0.00022598,2]
[315942324,1709295058197,-500.0,0.00022598,2]
[315942325,1709295058210,-500.0,0.00022598,2]
[315942326,1709295058223,-525.72747493,0.00022598,2]
[315942327,1709295058234,-500.0,0.00022598,2]
[315942328,1709295058247,-500.0,0.00022598,2]
[315942329,1709295058258,-500.0,0.00022598,2]
[315942330,1709295058270,-500.0,0.00022598,2]
[315942331,1709295058282,-500.0,0.00022598,2]
[315942332,1709295058294,-500.0,0.00022598,2]
[315942333,1709295058306,-500.0,0.00022598,2]
[315942334,1709295058318,-500.0,0.00022598,2]
[315942335,1709295058330,-550.24389705,0.00022598,2]
[315942336,1709295058341,-500.0,0.00022598,2]
[315942337,1709295058352,-648.19849957,0.00022598,2]
[315942338,1709295058365,-500.0,0.00022598,2]
[315942339,1709295058376,-657.26,0.00022598,2]
[315942340,1709295058388,-500.0,0.00022598,2]
[315942341,1709295058399,-500.0,0.00022598,2]
[315942342,1709295058411,-530.63128062,0.00022598,2]
[315942343,1709295058423,-500.0,0.00022598,2]
[315942344,1709295058434,-500.0,0.00022598,2]
[315942345,1709295058446,-500.0,0.00022598,2]
[315942346,1709295058458,-500.0,0.00022598,2]
[315942347,1709295058470,-525.58705533,0.00022598,2]
[315942348,1709295058482,-500.0,0.00022598,2]
[315942349,1709295058495,-240.47891236,0.00022598,2]
[315942350,1709295058508,-500.0,0.00022598,2]
[315942351,1709295058520,-500.0,0.00022598,2]
[315942352,1709295058533,-500.0,0.00022598,2]
[315942353,1709295058546,-500.0,0.00022598,2]
[315942354,1709295058558,-500.0,0.00022598,2]
[315942355,1709295058570,-506.05906705,0.00022598,2]
[315942356,1709295058582,-500.0,0.00022598,2]
[315942357,1709295058594,-500.0,0.00022598,2]
[315942358,1709295058606,-500.0,0.00022598,2]
[315942359,1709295058618,-500.0,0.00022598,2]
[315942360,1709295058628,-500.0,0.00022598,2]
[315942361,1709295058637,-500.0,0.00022598,2]
[315942362,1709295058646,-500.0,0.00022598,2]
[315942363,1709295058655,-500.0,0.00022598,2]
[315942364,1709295058664,-500.0,0.00022598,2]
[315942365,1709295058673,-500.0,0.00022598,2]
[315942366,1709295058683,-500.0,0.00022598,2]
[315942367,1709295058692,-500.0,0.00022598,2]
[315942368,1709295058701,-500.0,0.00022598,2]
[315942369,1709295058710,-500.0,0.00022598,2]
[315942370,1709295058720,-500.0,0.00022598,2]
[315942371,1709295058729,-500.0,0.00022598,2]
[315942372,1709295058738,-500.0,0.00022598,2]
[315942373,1709295058748,-500.0,0.00022598,2]
[315942374,1709295058757,-500.0,0.00022598,2]
[315942375,1709295058766,-500.0,0.00022598,2]
[315942376,1709295058777,-500.0,0.00022598,2]
[315942377,1709295058786,-500.0,0.00022598,2]
[315942378,1709295058796,-583.02027908,0.00022598,2]
[315942379,1709295058805,-500.0,0.00022598,2]
[315942380,1709295058815,-500.0,0.00022598,2]
[315942381,1709295058825,-588.6383517,0.00022598,2]
[315942382,1709295058834,-500.0,0.00022598,2]
[315942383,1709295058843,-707.17,0.00022598,2]
[315942384,1709295058852,-500.0,0.00022598,2]
[315942385,1709295058861,-500.0,0.00022598,2]
[315942386,1709295058871,-500.0,0.00022598,2]
[315942387,1709295058881,-304.77912175,0.00022598,2]
[315942388,1709295058890,-500.0,0.00022598,2]
[315942389,1709295058899,-473.89318594,0.00022598,2]
[315942390,1709295058909,-500.0,0.00022598,2]
[315942391,1709295058918,-600.85,0.00022598,2]
[315942392,1709295058927,-500.0,0.00022598,2]
[315942393,1709295058937,-500.0,0.00022598,2]
[315942394,1709295058946,-500.0,0.00022598,2]
[315942395,1709295058955,-500.0,0.00022598,2]
[315942396,1709295058965,-500.0,0.00022598,2]
[315942397,1709295058974,-500.0,0.00022598,2]
[315942398,1709295058984,-500.0,0.00022598,2]
[315942399,1709295058993,-513.47521986,0.00022598,2]
[315942400,1709295059002,-500.0,0.00022598,2]
[315942401,1709295059012,-286.59916312,0.00022598,2]
[315942402,1709295059022,-500.0,0.00022598,2]
[315942403,1709295059032,-500.0,0.00022598,2]
[315942404,1709295059438,-500.0,0.00022598,2]
[315942405,1709295059459,-500.0,0.00022598,2]
[315942406,1709295059483,-500.0,0.00022598,2]
[315942407,1709295059500,-500.0,0.00022598,2]
[315942408,1709295059509,-500.0,0.00022598,2]
[315942409,1709295059518,-545.51843389,0.00022598,2]
[315942410,1709295059530,-500.0,0.00022598,2]
[315942411,1709295059539,-500.0,0.00022598,2]
[315942412,1709295059550,-500.0,0.00022598,2]
[315942413,1709295059560,-513.01903835,0.00022598,2]
[315942414,1709295059569,-500.0,0.00022598,2]
[315942415,1709295059580,-500.0,0.00022598,2]
[315942416,1709295059589,-500.0,0.00022598,2]
[315942417,1709295059598,-500.0,0.00022598,2]
[315942418,1709295059607,-707.17,0.00022598,2]
[315942419,1709295059617,-500.0,0.00022598,2]
[315942420,1709295059627,-500.0,0.00022598,2]
[315942421,1709295059636,-500.0,0.00022598,2]
[315942422,1709295059646,-500.0,0.00022598,2]
[315942423,1709295059656,-500.0,0.00022598,2]
[315942424,1709295059665,-500.0,0.00022598,2]
[315942425,1709295059674,-500.0,0.00022598,2]
[315942426,1709295059684,-500.0,0.00022598,2]
[315942427,1709295059693,-500.0,0.00022598,2]
[315942428,1709295059702,-500.0,0.00022598,2]
[315942429,1709295059711,-500.0,0.00022598,2]
[315942430,1709295059721,-500.0,0.00022598,2]
[315942431,1709295059730,-500.0,0.00022598,2]
[315942432,1709295059739,-500.0,0.00022598,2]
[315942433,1709295059748,-500.0,0.00022598,2]
[315942434,1709295059757,-548.98441411,0.00022598,2]
[315942435,1709295059767,-500.0,0.00022598,2]
[315942436,1709295059777,-500.0,0.00022598,2]
[315942437,1709295059787,-500.0,0.00022598,2]
[315942438,1709295059796,-500.0,0.00022598,2]
[315942439,1709295059805,-150.0,0.00022598,2]
[315942440,1709295059814,-500.0,0.00022598,2]
[315942441,1709295059823,-500.0,0.00022598,2]
[315942442,1709295059832,-500.0,0.00022598,2]
[315942443,1709295059841,-500.0,0.00022598,2]
[315942444,1709295059850,-500.0,0.00022598,2]
[315942445,1709295059859,-500.0,0.00022598,2]
[315942446,1709295059868,-500.0,0.00022598,2]
[315942447,1709295059878,-500.0,0.00022598,2]
[315942448,1709295059887,-500.0,0.00022598,2]
[315942449,1709295059897,-500.0,0.00022598,2]
[315942450,1709295059906,-500.0,0.00022598,2]
[315942451,1709295059915,-500.0,0.00022598,2]
[315942452,1709295059925,-500.0,0.00022598,2]
[315942453,1709295059934,-511.31314292,0.00022598,2]
[315942454,1709295059944,-582.58753006,0.00022598,2]
[315942455,1709295059953,-500.0,0.00022598,2]
[315942456,1709295059962,-371.20486712,0.00022598,2]
[315942457,1709295059994,-128.79513288,0.00022598,2]
[315942458,1709295060004,-500.0,0.00022598,2]
[315942459,1709295060013,-500.0,0.00022598,2]
[315942460,1709295060024,-500.0,0.00022598,2]
[315942461,1709295060043,-500.0,0.00022598,2]
[315942462,1709295060054,-881.76,0.00022598,2]
[315942463,1709295060066,-500.0,0.00022598,2]
[315942464,1709295060076,-500.0,0.00022598,2]
[315942465,1709295060086,-500.0,0.00022598,2]
[315942466,1709295060097,-500.0,0.00022598,2]
[315942467,1709295060107,-500.0,0.00022598,2]
[315942468,1709295060117,-500.0,0.00022598,2]
[315942469,1709295060128,-619.73,0.00022598,2]
[315942470,1709295060138,-500.0,0.00022598,2]
[315942471,1709295060148,-500.0,0.00022598,2]
[315942472,1709295060158,-500.0,0.00022598,2]
[315942473,1709295060168,-500.0,0.00022598,2]
[315942474,1709295060178,-545.52540897,0.00022598,2]
[315942475,1709295060187,-107.94829301,0.00022598,2]
[315942476,1709295061560,-1235.88,0.00022148,2]
[315942477,1709295061570,-333.66691234,0.00022209,2]
[315942478,1709295061580,-1235.88,0.00022422,2]
[315942479,1709295061590,-392.05170699,0.00022598,2]
[315942480,1709295061599,-500.0,0.00022598,2]
[315942481,1709295061609,-535.1,0.00022598,2]
[315942482,1709295061618,-500.0,0.00022598,2]
[315942483,1709295061627,-185.7412434,0.00022598,2]
[315942484,1709295061640,-314.2587566,0.00022598,2]
[315942485,1709295061650,-500.0,0.00022598,2]
[315942486,1709295061659,-514.47,0.00022598,2]
[315942487,1709295061668,-500.0,0.00022598,2]
[315942488,1709295061678,-500.0,0.00022598,2]
[315942489,1709295061687,-500.0,0.00022598,2]
[315942490,1709295061696,-500.0,0.00022598,2]
[315942491,1709295061705,-500.0,0.00022598,2]
[315942492,1709295061715,-500.0,0.00022598,2]
[315942493,1709295061725,-500.0,0.00022598,2]
[315942494,1709295061734,-505.95174269,0.00022598,2]
[315942495,1709295061744,-500.0,0.00022598,2]
[315942496,1709295061753,-677.28,0.00022598,2]
[315942497,1709295061762,-563.05192646,0.00022598,2]
[315942498,1709295061781,-167.05807354,0.00022598,2]
[315942499,1709295061790,-500.0,0.00022598,2]
[315942500,1709295061800,-500.0,0.00022598,2]
[315942501,1709295061809,-500.0,0.00022598,2]
[315942502,1709295061819,-500.0,0.00022598,2]
[315942503,1709295061829,-249.27777409,0.00022598,2]
[315942504,1709295061841,-250.72222591,0.00022598,2]
[315942505,1709295061851,-500.0,0.00022598,2]
[315942506,1709295061861,-500.0,0.00022598,2]
[315942507,1709295061874,-500.0,0.00022598,2]
[315942508,1709295061884,-500.0,0.00022598,2]
[315942509,1709295061894,-500.0,0.00022598,2]
[315942510,1709295061903,-500.0,0.00022598,2]
[315942511,1709295061913,-500.0,0.00022598,2]
[315942512,1709295061923,-500.0,0.00022598,2]
[315942513,1709295061933,-593.83,0.00022598,2]
[315942514,1709295061943,-500.0,0.00022598,2]
[315942515,1709295061953,-500.0,0.00022598,2]
[315942516,1709295061963,-500.0,0.00022598,2]
[315942517,1709295061973,-500.0,0.00022598,2]
[315942518,1709295061982,-500.0,0.00022598,2]
[315942519,1709295061993,-500.0,0.00022598,2]
[315942520,1709295062004,-500.0,0.00022598,2]
[315942521,1709295062014,-500.0,0.00022598,2]
[315942522,1709295062026,-500.0,0.00022598,2]
[315942523,1709295062038,-674.97,0.00022598,2]
[315942524,1709295062048,-500.0,0.00022598,2]
[315942525,1709295062058,-500.0,0.00022598,2]
[315942526,1709295062069,-500.0,0.00022598,2]
[315942527,1709295062079,-500.0,0.00022598,2]
[315942528,1709295062089,-500.0,0.00022598,2]
[315942529,1709295062098,-500.0,0.00022598,2]
[315942530,1709295062107,-500.0,0.00022598,2]
[315942531,1709295062117,-500.0,0.00022598,2]
[315942532,1709295062127,-500.0,0.00022598,2]
[315942533,1709295062137,-500.0,0.00022598,2]
[315942534,1709295062147,-500.0,0.00022598,2]
[315942535,1709295062157,-500.0,0.00022598,2]
[315942536,1709295062167,-500.0,0.00022598,2]
[315942537,1709295062177,-500.0,0.00022598,2]
[315942538,1709295062187,-559.17093028,0.00022598,2]
[315942539,1709295062197,-500.0,0.00022598,2]
[315942540,1709295062207,-500.0,0.00022598,2]
[315942541,1709295062219,-500.0,0.00022598,2]
[315942542,1709295062228,-500.0,0.00022598,2]
[315942543,1709295062238,-500.0,0.00022598,2]
[315942544,1709295062247,-500.0,0.00022598,2]
[315942545,1709295062258,-500.0,0.00022598,2]
[315942546,1709295062268,-500.0,0.00022598,2]
[315942547,1709295062282,-500.0,0.00022598,2]
[315942548,1709295062291,-500.0,0.00022598,2]
[315942549,1709295062301,-500.0,0.00022598,2]
[315942550,1709295062312,-500.0,0.00022598,2]
[315942551,1709295062322,-411.06118953,0.00022598,2]
[315942552,1709295062332,-500.0,0.00022598,2]
[315942553,1709295062342,-676.96,0.00022598,2]
[315942554,1709295062353,-500.0,0.00022598,2]
[315942555,1709295062364,-500.0,0.00022598,2]
[315942556,1709295062375,-500.0,0.00022598,2]
[315942557,1709295062385,-500.0,0.00022598,2]
[315942558,1709295062396,-500.0,0.00022598,2]
[315942559,1709295062407,-1289.53,0.00022598,2]
[315942560,1709295062417,-500.0,0.00022598,2]
[315942561,1709295062426,-500.0,0.00022598,2]
[315942562,1709295062436,-500.0,0.00022598,2]
[315942563,1709295062446,-505.68,0.00022598,2]
[315942564,1709295062456,-500.0,0.00022598,2]
[315942565,1709295062466,-500.0,0.00022598,2]
[315942566,1709295062476,-500.0,0.00022598,2]
[315942567,1709295062486,-500.0,0.00022598,2]
[315942568,1709295062496,-5436.41,0.00022598,2]
[315942569,1709295062505,-500.0,0.00022598,2]
[315942570,1709295062516,-500.0,0.00022598,2]
[315942571,1709295062844,-500.0,0.00022598,2]
[315942572,1709295062854,-500.0,0.00022598,2]
[315942573,1709295062864,-669.13,0.00022598,2]
[315942574,1709295062874,-500.0,0.00022598,2]
[315942575,1709295062884,-500.0,0.00022598,2]
[315942576,1709295062894,-500.0,0.00022598,2]
[315942577,1709295062903,-500.0,0.00022598,2]
[315942578,1709295062913,-500.0,0.00022598,2]
[315942579,1709295062922,-500.0,0.00022598,2]
[315942580,1709295062931,-500.0,0.00022598,2]
[315942581,1709295062941,-500.0,0.00022598,2]
[315942582,1709295062950,-500.0,0.00022598,2]
[315942583,1709295062959,-500.0,0.00022598,2]
[315942584,1709295062969,-500.0,0.00022598,2]
[315942585,1709295062978,-500.0,0.00022598,2]
[315942586,1709295062988,-500.0,0.00022598,2]
[315942587,1709295062997,-500.0,0.00022598,2]
[315942588,1709295063007,-500.0,0.00022598,2]
[315942589,1709295063016,-500.0,0.00022598,2]
[315942590,1709295063027,-500.0,0.00022598,2]
[315942591,1709295063038,-500.0,0.00022598,2]
[315942592,1709295063047,-500.0,0.00022598,2]
[315942593,1709295063057,-500.0,0.00022598,2]
[315942594,1709295063066,-500.0,0.00022598,2]
[315942595,1709295063076,-500.0,0.00022598,2]
[315942596,1709295063086,-500.0,0.00022598,2]
[315942597,1709295063095,-500.0,0.00022598,2]
[315942598,1709295063104,-500.0,0.00022598,2]
[315942599,1709295063114,-500.0,0.00022598,2]
[315942600,1709295063123,-880.13,0.00022598,2]
[315942601,1709295063132,-500.0,0.00022598,2]
[315942602,1709295063142,-500.0,0.00022598,2]
[315942603,1709295063151,-500.0,0.00022598,2]
[315942604,1709295063161,-500.0,0.00022598,2]
[315942605,1709295063170,-500.0,0.00022598,2]
[315942606,1709295063179,-500.0,0.00022598,2]
[315942607,1709295063189,-500.0,0.00022598,2]
[315942608,1709295063198,-500.0,0.00022598,2]
[315942609,1709295063214,-502.09830695,0.00022598,2]
[315942610,1709295063223,-500.0,0.00022598,2]
[315942611,1709295063233,-500.0,0.00022598,2]
[315942612,1709295063242,-500.45,0.00022598,2]
[315942613,1709295063253,-500.0,0.00022598,2]
[315942614,1709295063263,-500.0,0.00022598,2]
[315942615,1709295063272,-535.42,0.00022598,2]
[315942616,1709295063283,-500.0,0.00022598,2]
[315942617,1709295063293,-500.0,0.00022598,2]
[315942618,1709295063302,-500.0,0.00022598,2]
[315942619,1709295063311,-548.21,0.00022598,2]
[315942620,1709295063320,-500.0,0.00022598,2]
[315942621,1709295063330,-500.0,0.00022598,2]
[315942622,1709295063339,-500.0,0.00022598,2]
[315942623,1709295063349,-500.0,0.00022598,2]
[315942624,1709295063359,-500.0,0.00022598,2]
[315942625,1709295063369,-500.0,0.00022598,2]
[315942626,1709295063378,-500.0,0.00022598,2]
[315942627,1709295063388,-500.0,0.00022598,2]
[315942628,1709295063398,-500.0,0.00022598,2]
[315942629,1709295063407,-500.0,0.00022598,2]
[315942630,1709295063417,-592.55,0.00022598,2]
[315942631,1709295063426,-637.19805511,0.00022598,2]
[315942632,1709295063436,-500.0,0.00022598,2]
[315942633,1709295063445,-500.0,0.00022598,2]
[315942634,1709295063455,-629.71669468,0.00022598,2]
[315942635,1709295063465,-500.0,0.00022598,2]
[315942636,1709295063474,-500.0,0.00022598,2]
[315942637,1709295063484,-500.0,0.00022598,2]
[315942638,1709295063493,-500.0,0.00022598,2]
[315942639,1709295063503,-500.0,0.00022598,2]
[315942640,1709295063512,-500.0,0.00022598,2]
[315942641,1709295063522,-500.0,0.00022598,2]
[315942642,1709295063534,-612.96,0.00022598,2]
[315942643,1709295063543,-528.89994782,0.00022598,2]
[315942644,1709295063553,-500.0,0.00022598,2]
[315942645,1709295063562,-500.0,0.00022598,2]
[315942646,1709295063572,-373.32012053,0.00022598,2]
[315942647,1709295063581,-500.0,0.00022598,2]
[315942648,1709295063590,-500.0,0.00022598,2]
[315942649,1709295063600,-500.0,0.00022598,2]
[315942650,1709295063609,-672.05,0.00022598,2]
[315942651,1709295063619,-500.0,0.00022598,2]
[315942652,1709295063628,-1219.7,0.00022598,2]
[315942653,1709295063638,-559.19008466,0.00022598,2]
[315942654,1709295063649,-500.0,0.00022598,2]
[315942655,1709295063659,-332.99662742,0.00022598,2]
[315942656,1709295063670,-674.89,0.00022598,2]
[315942657,1709295063680,-500.0,0.00022598,2]
[315942658,1709295063691,-1182.7,0.00022598,2]
[315942659,1709295063700,-500.0,0.00022598,2]
[315942660,1709295063710,-500.0,0.00022598,2]
[315942661,1709295063719,-500.0,0.00022598,2]
[315942662,1709295063728,-500.0,0.00022598,2]
[315942663,1709295063738,-500.0,0.00022598,2]
[315942664,1709295063747,-953.65,0.00022598,2]
[315942665,1709295063756,-500.0,0.00022598,2]
[315942666,1709295063766,-1439.15,0.00022598,2]
[315942667,1709295063776,-500.0,0.00022598,2]
[315942668,1709295063789,-500.0,0.00022598,2]
[315942669,1709295063798,-500.0,0.00022598,2]
[315942670,1709295063809,-719.86,0.00022598,2]
[315942671,1709295063819,-1116.5,0.00022598,2]
[315942672,1709295063829,-500.0,0.00022598,2]
[315942673,1709295063839,-610.54,0.00022598,2]
[315942674,1709295063849,-500.0,0.00022598,2]
[315942675,1709295063858,-500.0,0.00022598,2]
[315942676,1709295063868,-500.0,0.00022598,2]
[315942677,1709295063879,-500.0,0.00022598,2]
[315942678,1709295063889,-833.08,0.00022598,2]
[315942679,1709295063898,-500.0,0.00022598,2]
[315942680,1709295063907,-500.0,0.00022598,2]
[315942681,1709295063917,-500.0,0.00022598,2]
[315942682,1709295063926,-1617.23,0.00022598,2]
[315942683,1709295063935,-500.0,0.00022598,2]
[315942684,1709295063944,-500.0,0.00022598,2]
[315942685,1709295063954,-500.0,0.00022598,2]
[315942686,1709295063963,-668.58,0.00022598,2]
[315942687,1709295063972,-500.0,0.00022598,2]
[315942688,1709295063982,-647.67521571,0.00022598,2]
[315942689,1709295063991,-500.0,0.00022598,2]
[315942690,1709295064001,-500.0,0.00022598,2]
[315942691,1709295064011,-500.0,0.00022598,2]
[315942692,1709295064020,-1085.94,0.00022598,2]